fUSD/lending_fUSD_20240817
["ID","MTS","AMOUNT","RATE_DAILY","PERIOD"]
[335172629,1723932643222,-500.0,0.00010999,2]
[335172630,1723932643232,-795.22,0.00010999,2]
[335172631,1723932643241,-795.22,0.00010999,2]
[335172632,1723932643250,-6472.4,0.00010999,2]
[335172633,1723932643259,-500.0,0.00010999,2]
[335172634,1723932643269,-795.22,0.00010999,2]
[335172635,1723932643278,-6472.4,0.00010999,2]
[335172636,1723932643287,-795.22,0.00010999,2]
[335172637,1723932643296,-500.0,0.00010999,2]
[335172638,1723932643311,-6472.4,0.00010999,2]
[335172639,1723932643320,-795.22,0.00010999,2]
[335172640,1723932643329,-500.0,0.00010999,2]
[335172641,1723932643338,-6472.4,0.00010999,2]
[335172642,1723932643348,-795.31,0.00010999,2]
[335172643,1723932643357,-500.0,0.00010999,2]
[335172644,1723932643366,-6472.4,0.00010999,2]
[335172645,1723932643375,-638.02,0.00010999,2]
[335172646,1723932643385,-6472.4,0.00010999,2]
[335172647,1723932643394,-6472.4,0.00010999,2]
[335172648,1723932643404,-500.0,0.00010999,2]
[335172649,1723932643413,-7262.69,0.00010999,2]
[335172650,1723932643422,-500.0,0.00010999,2]
[335172651,1723932643432,-7262.69,0.00010999,2]
[335172652,1723932643441,-500.0,0.00010999,2]
[335172653,1723932643451,-500.0,0.00010999,2]
[335172655,1723932643460,-7262.69,0.00010999,2]
[335172658,1723932643470,-500.0,0.00010999,2]
[335172660,1723932643479,-7262.69,0.00010999,2]
[335172662,1723932643489,-500.0,0.00010999,2]
[335172663,1723932643498,-7262.69,0.00010999,2]
[335172664,1723932643507,-500.0,0.00010999,2]
[335172665,1723932643516,-500.0,0.00010999,2]
[335172666,1723932643526,-7262.69,0.00010999,2]
[335172667,1723932643535,-500.0,0.00010999,2]
[335172668,1723932643544,-500.0,0.00010999,2]
[335172669,1723932643555,-7262.69,0.00010999,2]
[335172670,1723932643565,-500.0,0.00010999,2]
[335172671,1723932643575,-7262.69,0.00010999,2]
[335172672,1723932643584,-500.0,0.00010999,2]
[335172673,1723932643594,-7262.69,0.00010999,2]
[335172674,1723932643605,-500.0,0.00010999,2]
[335172675,1723932643615,-7262.69,0.00010999,2]
[335172676,1723932643624,-500.0,0.00010999,2]
[335172677,1723932643633,-7262.69,0.00010999,2]
[335172678,1723932643642,-7262.69,0.00010999,2]
[335172679,1723932643653,-500.0,0.00010999,2]
[335172680,1723932643662,-7262.69,0.00010999,2]
[335172681,1723932643671,-507.96,0.00010999,2]
[335172682,1723932643685,-7262.69,0.00010999,2]
[335172683,1723932643695,-7262.69,0.00010999,2]
[335172684,1723932643704,-7262.69,0.00010999,2]
[335172685,1723932643714,-7262.69,0.00010999,2]
[335172686,1723932643723,-7262.69,0.00010999,2]
[335172687,1723932643732,-7262.69,0.00010999,2]
[335172688,1723932643742,-500.0,0.00010999,2]
[335172689,1723932643751,-7262.69,0.00010999,2]
[335172690,1723932643762,-7262.69,0.00010999,2]
[335172691,1723932643771,-7262.69,0.00010999,2]
[335172692,1723932643781,-7262.69,0.00010999,2]
[335172693,1723932643791,-7262.86373648,0.00010999,2]
[335172694,1723932643801,-500.0,0.00010999,2]
[335172695,1723932643810,-500.0,0.00010999,2]
[335172696,1723932643819,-5902.04,0.00010999,2]
[335172697,1723932643829,-500.0,0.00010999,2]
[335172698,1723932643839,-500.0,0.00010999,2]
[335172699,1723932643848,-500.0,0.00010999,2]
[335172700,1723932643859,-5902.04,0.00010999,2]
[335172701,1723932643868,-408.41,0.00010999,2]
[335172702,1723932643879,-500.0,0.00010999,2]
[335172703,1723932643889,-5902.04,0.00010999,2]
[335172704,1723932643898,-500.0,0.00010999,2]
[335172705,1723932643908,-500.0,0.00010999,2]
[335172706,1723932643917,-5902.04,0.00010999,2]
[335172707,1723932643926,-5902.04,0.00010999,2]
[335172708,1723932643935,-500.0,0.00010999,2]
[335172709,1723932643945,-5902.04,0.00010999,2]
[335172710,1723932643954,-500.0,0.00010999,2]
[335172711,1723932643963,-500.0,0.00010999,2]
[335172712,1723932643973,-5902.04,0.00010999,2]
[335172713,1723932643981,-20277.07,0.00010999,2]
[335172714,1723932643990,-225.44,0.00010999,2]
[335172715,1723932644000,-5902.04,0.00010999,2]
[335172716,1723932644009,-20277.07,0.00010999,2]
[335172717,1723932644018,-5902.04,0.00010999,2]
[335172718,1723932644027,-500.0,0.00010999,2]
[335172719,1723932644036,-20277.07,0.00010999,2]
[335172720,1723932644045,-5902.04,0.00010999,2]
[335172721,1723932644056,-500.0,0.00010999,2]
[335172722,1723932644065,-20277.07,0.00010999,2]
[335172723,1723932644073,-5902.04,0.00010999,2]
[335172724,1723932644082,-500.0,0.00010999,2]
[335172725,1723932644091,-20277.07,0.00010999,2]
[335172726,1723932644100,-5902.04,0.00010999,2]
[335172727,1723932644109,-20277.07,0.00010999,2]
[335172728,1723932644118,-5902.04,0.00010999,2]
[335172729,1723932644127,-500.0,0.00010999,2]
[335172730,1723932644136,-20277.07,0.00010999,2]
[335172731,1723932644145,-500.0,0.00010999,2]
[335172732,1723932644154,-5902.04,0.00010999,2]
[335172733,1723932644163,-500.0,0.00010999,2]
[335172734,1723932644172,-5902.04,0.00010999,2]
[335172735,1723932644182,-20277.07,0.00010999,2]
[335172736,1723932644191,-500.0,0.00010999,2]
[335172737,1723932644200,-500.0,0.00010999,2]
[335172738,1723932644209,-5902.04,0.00010999,2]
[335172739,1723932644219,-20277.07,0.00010999,2]
[335172740,1723932644227,-500.0,0.00010999,2]
[335172741,1723932644237,-500.0,0.00010999,2]
[335172742,1723932644246,-20277.07,0.00010999,2]
[335172743,1723932644255,-5902.04,0.00010999,2]
[335172744,1723932644264,-500.0,0.00010999,2]
[335172745,1723932644273,-500.0,0.00010999,2]
[335172746,1723932644282,-20277.07,0.00010999,2]
[335172747,1723932644291,-500.0,0.00010999,2]
[335172748,1723932644301,-5902.04,0.00010999,2]
[335172749,1723932644310,-500.0,0.00010999,2]
[335172750,1723932644320,-500.0,0.00010999,2]
[335172751,1723932644331,-20277.07,0.00010999,2]
[335172752,1723932644341,-500.0,0.00010999,2]
[335172753,1723932644351,-5902.04,0.00010999,2]
[335172754,1723932644359,-500.0,0.00010999,2]
[335172755,1723932644368,-20277.07,0.00010999,2]
[335172756,1723932644379,-500.0,0.00010999,2]
[335172757,1723932644389,-5902.04,0.00010999,2]
[335172758,1723932644399,-500.0,0.00010999,2]
[335172759,1723932644409,-422.58,0.00010999,2]
[335172760,1723932644420,-20277.07,0.00010999,2]
[335172761,1723932644430,-500.0,0.00010999,2]
[335172762,1723932644441,-408.45,0.00010999,2]
[335172763,1723932644451,-5902.04,0.00010999,2]
[335172764,1723932644462,-20277.07,0.00010999,2]
[335172765,1723932644471,-869.83,0.00010999,2]
[335172766,1723932644481,-20277.07,0.00010999,2]
[335172767,1723932644491,-869.83,0.00010999,2]
[335172768,1723932644502,-5902.04,0.00010999,2]
[335172769,1723932644511,-500.0,0.00010999,2]
[335172770,1723932644521,-20277.07,0.00010999,2]
[335172771,1723932644530,-869.83,0.00010999,2]
[335172772,1723932644539,-5902.04,0.00010999,2]
[335172773,1723932644548,-609.64,0.00010999,2]
[335172774,1723932644557,-20277.07,0.00010999,2]
[335172775,1723932644566,-869.83,0.00010999,2]
[335172776,1723932644575,-5902.16,0.00010999,2]
[335172777,1723932644584,-869.83,0.00010999,2]
[335172778,1723932644594,-20277.07,0.00010999,2]
[335172779,1723932644607,-869.83,0.00010999,2]
[335172780,1723932644617,-20277.07,0.00010999,2]
[335172781,1723932644626,-869.83,0.00010999,2]
[335172782,1723932644636,-500.0,0.00010999,2]
[335172783,1723932644647,-20277.07,0.00010999,2]
[335172784,1723932644657,-869.83,0.00010999,2]
[335172785,1723932644666,-500.0,0.00010999,2]
[335172786,1723932644676,-20277.07,0.00010999,2]
[335172787,1723932644687,-500.0,0.00010999,2]
[335172788,1723932644696,-869.83,0.00010999,2]
[335172789,1723932644706,-20277.07,0.00010999,2]
[335172790,1723932644716,-500.0,0.00010999,2]
[335172791,1723932644726,-869.83,0.00010999,2]
[335172792,1723932644735,-20277.07,0.00010999,2]
[335172793,1723932644745,-436.39,0.00010999,2]
[335172794,1723932644754,-869.83,0.00010999,2]
[335172795,1723932644764,-869.83,0.00010999,2]
[335172796,1723932644773,-869.83,0.00010999,2]
[335172797,1723932644783,-869.83,0.00010999,2]
[335172798,1723932644792,-500.0,0.00010999,2]
[335172799,1723932644802,-500.0,0.00010999,2]
[335172800,1723932644813,-869.83,0.00010999,2]
[335172801,1723932644823,-500.0,0.00010999,2]
[335172802,1723932644832,-869.83,0.00010999,2]
[335172803,1723932644843,-869.83,0.00010999,2]
[335172804,1723932644853,-500.0,0.00010999,2]
[335172805,1723932644862,-869.83,0.00010999,2]
[335172806,1723932644872,-9546.17,0.00010999,2]
[335172807,1723932644881,-500.0,0.00010999,2]
[335172808,1723932644890,-869.83,0.00010999,2]
[335172809,1723932644899,-500.0,0.00010999,2]
[335172810,1723932644908,-869.83,0.00010999,2]
[335172811,1723932644917,-9546.17,0.00010999,2]
[335172812,1723932644926,-869.83,0.00010999,2]
[335172813,1723932644935,-9546.17,0.00010999,2]
[335172814,1723932644944,-500.0,0.00010999,2]
[335172815,1723932644954,-638.44,0.00010999,2]
[335172816,1723932644963,-9546.17,0.00010999,2]
[335172817,1723932644972,-869.83,0.00010999,2]
[335172818,1723932644981,-500.0,0.00010999,2]
[335172819,1723932644990,-9546.17,0.00010999,2]
[335172820,1723932645000,-500.0,0.00010999,2]
[335172821,1723932645009,-869.83,0.00010999,2]
[335172822,1723932645018,-9546.17,0.00010999,2]
[335172823,1723932645027,-500.0,0.00010999,2]
[335172824,1723932645037,-869.91,0.00010999,2]
[335172825,1723932645046,-9546.17,0.00010999,2]
[335172826,1723932645056,-500.0,0.00010999,2]
[335172827,1723932645065,-9546.17,0.00010999,2]
[335172828,1723932645074,-190.1,0.00010999,2]
[335172829,1723932645083,-9546.17,0.00010999,2]
[335172830,1723932645092,-9546.17,0.00010999,2]
[335172831,1723932645102,-9546.17,0.00010999,2]
[335172832,1723932645112,-500.0,0.00010999,2]
[335172833,1723932645124,-9546.17,0.00010999,2]
[335172834,1723932645135,-9546.17,0.00010999,2]
[335172835,1723932645145,-500.0,0.00010999,2]
[335172836,1723932645157,-1288.01,0.00010999,2]
[335172837,1723932645167,-500.0,0.00010999,2]
[335172838,1723932645176,-9546.17,0.00010999,2]
[335172839,1723932645184,-521.28,0.00010999,2]
[335172840,1723932645195,-1288.01,0.00010999,2]
[335172841,1723932645205,-500.0,0.00010999,2]
[335172842,1723932645216,-1288.01,0.00010999,2]
[335172843,1723932645226,-9546.17,0.00010999,2]
[335172844,1723932645236,-500.0,0.00010999,2]
[335172845,1723932645246,-9546.17,0.00010999,2]
[335172846,1723932645255,-1288.01,0.00010999,2]
[335172847,1723932645265,-500.0,0.00010999,2]
[335172848,1723932645274,-9546.17,0.00010999,2]
[335172849,1723932645283,-1288.01,0.00010999,2]
[335172850,1723932645292,-500.0,0.00010999,2]
[335172851,1723932645303,-9546.17,0.00010999,2]
[335172852,1723932645312,-1288.01,0.00010999,2]
[335172853,1723932645322,-500.0,0.00010999,2]
[335172854,1723932645332,-9546.17,0.00010999,2]
[335172855,1723932645341,-1288.01,0.00010999,2]
[335172856,1723932645351,-500.0,0.00010999,2]
[335172857,1723932645360,-9546.17,0.00010999,2]
[335172858,1723932645371,-500.0,0.00010999,2]
[335172859,1723932645380,-1288.01,0.00010999,2]
[335172860,1723932645389,-9546.17,0.00010999,2]
[335172861,1723932645398,-500.0,0.00010999,2]
[335172862,1723932645407,-1288.01,0.00010999,2]
[335172863,1723932645418,-9546.17,0.00010999,2]
[335172864,1723932645428,-500.0,0.00010999,2]
[335172865,1723932645439,-1288.01,0.00010999,2]
[335172866,1723932645449,-9546.17,0.00010999,2]
[335172867,1723932645458,-500.0,0.00010999,2]
[335172868,1723932645467,-1288.01,0.00010999,2]
[335172869,1723932645476,-9546.27,0.00010999,2]
[335172870,1723932645485,-500.0,0.00010999,2]
[335172871,1723932645494,-561.01,0.00010999,2]
[335172872,1723932645503,-1288.01,0.00010999,2]
[335172873,1723932645513,-500.0,0.00010999,2]
[335172874,1723932645522,-1288.01,0.00010999,2]
[335172875,1723932645531,-1288.01,0.00010999,2]
[335172876,1723932645540,-500.0,0.00010999,2]
[335172877,1723932645550,-617.16,0.00010999,2]
[335172878,1723932645559,-1288.01,0.00010999,2]
[335172879,1723932645568,-525.95,0.00010999,2]
[335172880,1723932645577,-1288.01,0.00010999,2]
[335172881,1723932645587,-1288.01,0.00010999,2]
[335172882,1723932645596,-1288.01,0.00010999,2]
[335172883,1723932645607,-1288.01,0.00010999,2]
[335172884,1723932645617,-1288.01,0.00010999,2]
[335172885,1723932645626,-1288.01,0.00010999,2]
[335172886,1723932645635,-1288.01,0.00010999,2]
[335172887,1723932645644,-1288.01,0.00010999,2]
[335172888,1723932645653,-1288.08143805,0.00010999,2]
[335172889,1723932645663,-500.0,0.00010999,2]
[335172890,1723932645672,-292.87,0.00010999,2]
[335172891,1723932645682,-2232.73,0.00010999,2]
[335172892,1723932645692,-2232.73,0.00010999,2]
[335172893,1723932645701,-500.0,0.00010999,2]
[335172894,1723932645712,-2232.73,0.00010999,2]
[335172895,1723932645721,-2232.73,0.00010999,2]
[335172896,1723932645730,-2232.73,0.00010999,2]
[335172897,1723932645741,-2232.73,0.00010999,2]
[335172898,1723932645750,-2232.73,0.00010999,2]
[335172899,1723932645759,-905.96,0.00010999,2]
[335172900,1723932645769,-500.0,0.00010999,2]
[335172901,1723932645778,-2232.73,0.00010999,2]
[335172902,1723932645788,-905.96,0.00010999,2]
[335172903,1723932645796,-905.96,0.00010999,2]
[335172904,1723932645806,-2232.73,0.00010999,2]
[335172905,1723932645816,-2232.73,0.00010999,2]
[335172906,1723932645825,-500.0,0.00010999,2]
[335172907,1723932645835,-2232.73,0.00010999,2]
[335172908,1723932645845,-905.96,0.00010999,2]
[335172909,1723932645854,-500.0,0.00010999,2]
[335172910,1723932645863,-2232.73,0.00010999,2]
[335172911,1723932645873,-465.38,0.00010999,2]
[335172912,1723932645882,-2232.73,0.00010999,2]
[335172913,1723932645891,-905.96,0.00010999,2]
[335172914,1723932645900,-2232.73,0.00010999,2]
[335172915,1723932645909,-2232.73,0.00010999,2]
[335172916,1723932645918,-905.96,0.00010999,2]
[335172917,1723932645927,-2232.73,0.00010999,2]
[335172918,1723932645937,-905.96,0.00010999,2]
[335172919,1723932645946,-2232.73,0.00010999,2]
[335172920,1723932645955,-905.96,0.00010999,2]
[335172922,1723932645964,-2232.73,0.00010999,2]
[335172924,1723932645973,-905.96,0.00010999,2]
[335172926,1723932645982,-79532.5,0.00010999,2]
[335172927,1723932645991,-905.96,0.00010999,2]
[335172928,1723932646001,-79532.5,0.00010999,2]
[335172929,1723932646010,-905.96,0.00010999,2]
[335172930,1723932646020,-79532.5,0.00010999,2]
[335172931,1723932646029,-905.96,0.00010999,2]
[335172932,1723932646038,-2232.73,0.00010999,2]
[335172933,1723932646047,-79532.5,0.00010999,2]
[335172934,1723932646057,-905.96,0.00010999,2]
[335172935,1723932646066,-2232.73,0.00010999,2]
[335172936,1723932646075,-79532.5,0.00010999,2]
[335172937,1723932646084,-905.96,0.00010999,2]
[335172938,1723932646093,-2232.73,0.00010999,2]
[335172939,1723932646102,-79532.5,0.00010999,2]
[335172940,1723932646111,-905.96,0.00010999,2]
[335172941,1723932646120,-79532.5,0.00010999,2]
[335172942,1723932646130,-2232.73,0.00010999,2]
[335172943,1723932646139,-905.96,0.00010999,2]
[335172944,1723932646148,-79532.5,0.00010999,2]
[335172945,1723932646157,-2232.73,0.00010999,2]
[335172946,1723932646166,-79532.5,0.00010999,2]
[335172947,1723932646175,-2232.81,0.00010999,2]
[335172948,1723932646184,-905.96,0.00010999,2]
[335172949,1723932646193,-79532.5,0.00010999,2]
[335172950,1723932646203,-905.96,0.00010999,2]
[335172951,1723932646212,-79532.5,0.00010999,2]
[335172952,1723932646221,-905.96,0.00010999,2]
[335172953,1723932646230,-905.96,0.00010999,2]
[335172954,1723932646240,-79532.5,0.00010999,2]
[335172955,1723932646249,-905.96,0.00010999,2]
[335172956,1723932646259,-79532.5,0.00010999,2]
[335172957,1723932646268,-905.96,0.00010999,2]
[335172958,1723932646277,-79532.5,0.00010999,2]
[335172959,1723932646287,-905.96,0.00010999,2]
[335172960,1723932646297,-79532.5,0.00010999,2]
[335172961,1723932646308,-4873.63,0.00010999,2]
[335172962,1723932646317,-906.17050548,0.00010999,2]
[335172963,1723932646326,-79532.5,0.00010999,2]
[335172964,1723932646336,-4873.63,0.00010999,2]
[335172965,1723932646345,-79532.5,0.00010999,2]
[335172966,1723932646354,-4873.63,0.00010999,2]
[335172967,1723932646363,-79532.5,0.00010999,2]
[335172968,1723932646372,-79532.5,0.00010999,2]
[335172969,1723932646381,-79532.5,0.00010999,2]
[335172970,1723932646391,-4873.63,0.00010999,2]
[335172971,1723932646400,-4873.63,0.00010999,2]
[335172972,1723932646409,-500.0,0.00010999,2]
[335172973,1723932646418,-79532.5,0.00010999,2]
[335172974,1723932646427,-4873.63,0.00010999,2]
[335172975,1723932646436,-500.0,0.00010999,2]
[335172976,1723932646445,-4249.16,0.00010999,2]
[335172977,1723932646454,-79532.5,0.00010999,2]
[335172978,1723932646463,-4873.63,0.00010999,2]
[335172979,1723932646473,-500.0,0.00010999,2]
[335172980,1723932646486,-4249.16,0.00010999,2]
[335172981,1723932646496,-500.0,0.00010999,2]
[335172982,1723932646506,-79532.5,0.00010999,2]
[335172983,1723932646518,-4873.63,0.00010999,2]
[335172984,1723932646528,-500.0,0.00010999,2]
[335172985,1723932646537,-4249.16,0.00010999,2]
[335172986,1723932646546,-4873.63,0.00010999,2]
[335172987,1723932646555,-500.0,0.00010999,2]
[335172988,1723932646564,-4249.16,0.00010999,2]
[335172989,1723932646574,-60034.73044371,0.00010999,2]
[335172990,1723932648947,-0.76938577,0.00010894,2]
[335173026,1723932780086,595.47,8.219e-05,2]
[335173029,1723932802794,595.90557673,9.922e-05,2]
[335173030,1723932806435,2116.1,9.964e-05,2]
[335173036,1723932825036,1465.86187704,9.964e-05,2]
[335173038,1723932828930,1252.74082596,9.964e-05,2]
[335173040,1723932862481,842.56,9.97e-05,2]
[335173053,1723932969993,5000.0,0.00014,31]
[335173054,1723933052819,200.0,9.935e-05,2]
[335173056,1723933075099,8087.21841617,9.921e-05,2]
[335173059,1723933122207,360.0,9.949e-05,2]
[335173060,1723933204331,1148.36,9.944e-05,2]
[335173061,1723933279133,598.04,8.219e-05,2]
[335173062,1723933325241,4917.78,9.931e-05,2]
[335173063,1723933343800,326.74,9.93e-05,2]
[335173064,1723933372972,325.95,9.942e-05,2]
[335173070,1723933519806,7588.87744833,9e-05,2]
[335173072,1723933533710,4648.75,9.916e-05,2]
[335173074,1723933553953,5881.25464484,6.94e-05,2]
[335173075,1723933575605,186.66,9.899e-05,2]
[335173076,1723933615019,150.0,9.888e-05,2]
[335173077,1723933623133,250.0,9.9e-05,2]
[335173138,1723933759227,600.48,8.219e-05,2]
[335173140,1723933817416,326.73,9.879e-05,2]
[335173144,1723933832069,-550.0,0.0001,2]
[335173145,1723933832079,-689.39805608,0.00010097,2]
[335173146,1723933832096,-2151.94532035,0.00010097,2]
[335173147,1723933832106,-600.48,0.00010469,2]
[335173148,1723933832115,-1739.7277323,0.00010471,2]
[335173149,1723933832125,-300.0,0.00010479,2]
[335173150,1723933832136,-300.0,0.00010479,2]
[335173151,1723933832145,-680.41748403,0.0001048,2]
[335173152,1723933832159,-7011.24858087,0.0001048,2]
[335173153,1723933832207,-2341.35126543,0.0001048,2]
[335173154,1723933832219,-2127.91,0.0001048,2]
[335173155,1723933832230,-251.03914311,0.0001048,2]
[335173156,1723933832241,-2047.28495251,0.0001048,2]
[335173157,1723933832251,-3033.53018522,0.00010505,2]
[335173158,1723933832261,-2193.21,0.000107,2]
[335173159,1723933832270,-308.95974444,0.00010713,2]
[335173160,1723933832280,-493.834651,0.00010713,2]
[335173161,1723933832289,-308.79512081,0.00010798,2]
[335173162,1723933832306,-17.98221811,0.00010798,2]
[335173163,1723933832315,-346.68814277,0.00010799,2]
[335173164,1723933832327,-84.78897595,0.00010799,2]
[335173165,1723933832337,-164.41632778,0.00010799,2]
[335173166,1723933832347,-150.0,0.00010799,2]
[335173167,1723933832357,-150.99,0.00010799,2]
[335173168,1723933832366,-828.3,0.00010799,2]
[335173169,1723933832376,-163.40966143,0.00010799,2]
[335173170,1723933832387,-736.5947,0.000108,2]
[335173171,1723933832397,-3266.5592,0.000108,2]
[335173172,1723933832411,-30160.7693,0.000108,2]
[335173173,1723933832421,-1288.7036,0.000108,2]
[335173174,1723933832430,-7302.4785,0.000108,2]
[335173176,1723933832440,-972.2854,0.000108,2]
[335173178,1723933832450,-150.0,0.000108,2]
[335173180,1723933832459,-150.58,0.000108,2]
[335173182,1723933832469,-1057.51,0.000108,2]
[335173184,1723933832480,-300.0,0.000108,2]
[335173185,1723933832490,-150.0,0.000108,2]
[335173186,1723933832499,-880.61,0.00010822,2]
[335173187,1723933832509,-1205.0,0.00010846,2]
[335173188,1723933832519,-326.7773389,0.00010849,2]
[335173189,1723933832528,-328.27252306,0.00010852,2]
[335173190,1723933832538,-264.61688049,0.00010852,2]
[335173192,1723933832547,-236.36319912,0.00010852,2]
[335173193,1723933832556,-313.30908928,0.00010852,2]
[335173194,1723933832566,-155.0,0.00010861,2]
[335173195,1723933832576,-155.0,0.00010861,2]
[335173196,1723933832585,-155.0,0.00010862,2]
[335173212,1723933832778,-529.06840351,0.00010862,2]
[335173214,1723933832789,-600.79792946,0.00010862,2]
[335173216,1723933832799,-177.44244425,0.00010862,2]
[335173235,1723933838130,-166.36581146,0.00010713,2]
[335173236,1723933838139,-1124.69418854,0.00010846,2]
[335173237,1723933838151,-8779.34461839,0.00010846,2]
[335173238,1723933838168,-400.66006187,0.00010846,2]
[335173239,1723933838189,-11458.3011312,0.00010846,2]
[335173240,1723933838198,-1673.0,0.00010846,2]
[335173241,1723933838207,-41.48547017,0.00010862,2]
[335173242,1723933838217,-347.86651899,0.00010862,2]
[335173243,1723933838226,-223.76,0.00010886,2]
[335173244,1723933838235,-368.57059069,0.00010888,2]
[335173245,1723933838244,-6135.35461983,0.0001089,2]
[335173246,1723933838253,-155.0,0.0001089,2]
[335173247,1723933838263,-155.0,0.0001089,2]
[335173248,1723933838272,-962.80465455,0.0001089,2]
[335173249,1723933838281,-383.04992826,0.00010893,2]
[335173250,1723933838290,-208.91797478,0.00010893,2]
[335173251,1723933838299,-500.0,0.00010894,2]
[335173252,1723933838308,-655.0,0.00010894,2]
[335173253,1723933838319,-151.0,0.00010894,2]
[335173254,1723933838328,-151.0,0.00010894,2]
[335173255,1723933838338,-151.0,0.00010894,2]
[335173256,1723933838347,-151.0,0.00010894,2]
[335173257,1723933838356,-201.0,0.00010894,2]
[335173258,1723933838365,-500.0,0.00010894,2]
[335173259,1723933838375,-500.0,0.00010894,2]
[335173260,1723933838383,-500.0,0.00010894,2]
[335173261,1723933838393,-500.0,0.00010894,2]
[335173262,1723933838404,-500.0,0.00010894,2]
[335173263,1723933838419,-500.0,0.00010894,2]
[335173264,1723933838428,-500.0,0.00010894,2]
[335173265,1723933838439,-500.0,0.00010894,2]
[335173266,1723933838447,-500.0,0.00010894,2]
[335173267,1723933838457,-500.0,0.00010894,2]
[335173268,1723933838466,-500.0,0.00010894,2]
[335173270,1723933838476,-500.0,0.00010894,2]
[335173271,1723933838486,-500.0,0.00010894,2]
[335173272,1723933838496,-890.0,0.00010894,2]
[335173273,1723933838506,-383.04992826,0.00010895,2]
[335173274,1723933838515,-208.91797476,0.00010895,2]
[335173275,1723933838526,-3540.96,0.00010897,2]
[335173276,1723933838536,-3046.02,0.00010897,2]
[335173277,1723933838546,-3676.98,0.00010897,2]
[335173278,1723933838557,-816.91,0.00010897,2]
[335173279,1723933838566,-2937.4,0.00010897,2]
[335173280,1723933838576,-16932.38,0.00010897,2]
[335173281,1723933838587,-6834.79,0.00010897,2]
[335173282,1723933838596,-383.04992826,0.00010897,2]
[335173283,1723933838606,-5697.62,0.00010897,2]
[335173284,1723933838615,-5515.11,0.00010897,2]
[335173285,1723933838624,-5360.61,0.00010897,2]
[335173286,1723933838634,-5248.07,0.00010897,2]
[335173287,1723933838643,-6669.51,0.00010897,2]
[335173288,1723933838652,-4291.93,0.00010897,2]
[335173289,1723933838662,-500.0,0.00010897,2]
[335173290,1723933838671,-500.0,0.00010897,2]
[335173291,1723933838681,-4766.77,0.00010897,2]
[335173292,1723933838691,-5266.78,0.00010897,2]
[335173293,1723933838701,-3523.83,0.00010897,2]
[335173294,1723933838711,-500.0,0.00010897,2]
[335173295,1723933838734,-8326.42,0.00010897,2]
[335173296,1723933838743,-2196.37,0.00010897,2]
[335173297,1723933838752,-500.0,0.00010897,2]
[335173298,1723933838761,-208.91797476,0.00010897,2]
[335173299,1723933838770,-500.0,0.00010897,2]
[335173300,1723933838779,-1303.34,0.00010897,2]
[335173301,1723933838788,-172.00474582,0.00010898,2]
[335173302,1723933838797,-32024.943,0.00010898,2]
[335173303,1723933838806,-812.4,0.00010898,2]
[335173304,1723933838815,-5122.14,0.00010898,2]
[335173305,1723933838824,-2297.57,0.00010898,2]
[335173306,1723933838833,-5679.21,0.00010898,2]
[335173307,1723933838842,-75796.46,0.00010898,2]
[335173308,1723933838851,-3865.03,0.00010898,2]